bitfinex/quotes_SOLUSD_20220208
["timestamp","ask_amount","ask_price","bid_price","bid_amount"]
[1644308508469,8.72290695,114.73,114.6,1.83024316]
[1644308508470,14.72290695,114.73,114.6,1.83024316]
[1644308508673,14.72290695,114.73,114.6,12.17024316]
[1644308508871,14.72290695,114.73,114.6,10.59]
[1644308509071,14.72290695,114.73,114.6,12.42024316]
[1644308509672,14.72290695,114.73,114.6,31.50094316]
[1644308509870,14.72290695,114.73,114.6,25.50094316]
[1644308510071,14.72290695,114.73,114.6,23.6707]
[1644308510271,14.22290695,114.73,114.6,23.6707]
[1644308510470,14.22290695,114.73,114.6,25.50094316]
[1644308510871,14.22290695,114.73,114.6,31.50094316]
[1644308511274,14.47290695,114.73,114.6,31.50094316]
[1644308511471,8.47290695,114.73,114.6,25.50094316]
[1644308511672,8.22290695,114.73,114.6,25.25094316]
[1644308512571,14.22290695,114.73,114.6,31.25094316]
[1644308513171,14.22290695,114.73,114.6,31.50094316]
[1644308513373,14.22290695,114.73,114.61,0.31500959]
[1644308513573,14.22290695,114.73,114.62,10.34]
[1644308513774,14.22290695,114.73,114.64,13.074]
[1644308513973,14.22290695,114.73,114.65,10.34]
[1644308514172,14.22290695,114.73,114.65,12.17024316]
[1644308514374,14.22290695,114.73,114.65,12.42024316]
[1644308514971,13.72290695,114.73,114.65,12.42024316]
[1644308515374,0.00290695,114.73,114.65,12.42024316]
[1644308515573,0.43781252,114.76,114.65,18.42024316]
[1644308516378,0.43781252,114.76,114.65,12.42024316]
[1644308516577,0.43781252,114.76,114.65,10.34]
[1644308519079,0.43781252,114.76,114.65,12.17011652]
[1644308519480,0.43781252,114.76,114.65,10.34]
[1644308520083,0.43781252,114.76,114.65,25.24521652]
[1644308520584,0.43781252,114.76,114.65,31.24521652]
[1644308520783,0.43781252,114.76,114.66,24.7951]
[1644308520989,0.43781252,114.76,114.67,10.34]
[1644308521184,0.43781252,114.76,114.67,25.24331652]
[1644308521385,0.43781252,114.76,114.67,10.34]
[1644308521583,0.43781252,114.76,114.66,24.7951]
[1644308521982,0.43781252,114.76,114.66,35.1351]
[1644308522204,0.43781252,114.76,114.66,36.96521652]
[1644308522605,0.02835989,114.79,114.66,45.69851652]
[1644308522808,0.32510379,114.82,114.67,10.34]
[1644308523006,0.2967439,114.82,114.67,10.34]
[1644308523206,0.2967439,114.82,114.68,1.83011652]
[1644308523407,0.2967439,114.82,114.69,10.34]
[1644308523706,0.2967439,114.82,114.7,1.83011652]
[1644308523909,0.2967439,114.82,114.71,10.34]
[1644308524507,0.2967439,114.82,114.71,12.17011652]
[1644308524706,0.2967439,114.82,114.71,25.23791652]
[1644308524905,0.2967439,114.82,114.71,23.4078]
[1644308525707,0.2967439,114.82,114.71,23.6578]
[1644308525908,0.2967439,114.82,114.71,10.34]
[1644308526308,2.40449939,114.82,114.71,10.34]
[1644308526511,0.2967439,114.82,114.71,10.34]
[1644308527008,0.2967439,114.82,114.71,12.17011652]
[1644308527208,8.23169909,114.81,114.71,18.17011652]
[1644308527409,8.23169909,114.81,114.71,18.48112614]
[1644308527610,8.23169909,114.81,114.71,18.73112614]
[1644308527809,8.23169909,114.81,114.71,147.64011652]
[1644308528710,5.20169909,114.81,114.74,13.0616]
[1644308529013,0.39554448,114.84,114.76,125.0]
[1644308529309,0.39554448,114.84,114.77,12.17011652]
[1644308529510,0.39554448,114.84,114.77,35.90161652]
[1644308529709,0.02835989,114.89,114.79,31.0]
[1644308530010,0.09047694,114.9,114.79,31.0]
[1644308530011,0.09047694,114.9,114.8,10.34]
[1644308530209,0.09047694,114.9,114.8,56.7814]
[1644308530911,3.46763251,114.99,114.8,56.7814]
[1644308530912,5.8232557,115.04,114.9,0.09047694]
[1644308531111,1.4702557,115.04,114.94,129.22]
[1644308531311,0.0002557,115.04,114.97,129.22]
[1644308531511,0.24911696,115.08,115.0,129.22]
[1644308531713,0.0013033,115.03,115.01,10.34]
[1644308531912,0.0013033,115.03,115.02,6.06439994]
[1644308532112,0.0013033,115.03,115.02,22.40439994]
[1644308532314,0.0013033,115.03,115.02,16.9642403]
[1644308532512,0.0013033,115.03,115.02,16.40439994]
[1644308533113,0.0013033,115.03,115.02,6.06439994]
[1644308535716,0.0013033,115.03,115.02,16.65439994]
[1644308536016,0.0013033,115.03,115.02,16.40439994]
[1644308536516,0.0013033,115.03,115.02,16.65439994]
[1644308536717,0.0013033,115.03,115.02,16.40439994]
[1644308537416,0.0013033,115.03,115.02,16.65439994]
[1644308537616,0.0013033,115.03,115.02,18.48000082]
[1644308537816,0.00911696,115.08,115.03,135.0]
[1644308538117,0.00911696,115.08,115.04,26.28550082]
[1644308538317,0.00911696,115.08,115.06,129.54228254]
[1644308538517,0.00911696,115.08,115.07,6.06439994]
[1644308538816,0.00911696,115.08,115.07,12.31439994]
[1644308539015,0.3462205,115.08,115.07,22.65439994]
[1644308539216,0.00445442,115.08,115.07,22.65439994]
[1644308539416,0.00445442,115.08,115.07,22.40439994]
[1644308539620,0.00445442,115.08,115.07,16.40439994]
[1644308539816,0.00445442,115.08,115.07,6.06439994]
[1644308540820,0.00445442,115.08,115.07,16.40439994]
[1644308541817,0.52506404,115.14,115.08,63.67]
[1644308542018,0.52506404,115.14,115.08,19.01]
[1644308542222,0.52506404,115.14,115.08,19.26]
[1644308542619,0.52506404,115.14,115.08,25.26]
[1644308542821,0.52506404,115.14,115.08,16.34]
[1644308543320,0.52506404,115.14,115.08,16.59]
[1644308543618,0.52506404,115.14,115.08,10.34]
[1644308543819,0.52506404,115.14,115.08,10.59]
[1644308544322,0.52506404,115.14,115.08,10.34]
[1644308544821,0.52506404,115.14,115.08,10.59]
[1644308546320,0.383054,115.18,115.1,108.0]
[1644308546520,0.383054,115.18,115.11,58.34]
[1644308546521,0.73787008,115.18,115.11,58.34]
[1644308546720,0.73787008,115.18,115.11,12.41593336]
[1644308546919,0.73787008,115.18,115.11,10.59]
[1644308547120,0.73787008,115.18,115.11,10.34]
[1644308547323,0.73787008,115.18,115.11,10.59]
[1644308547521,0.02890273,115.23,115.12,129.82593336]
[1644308547722,0.66725896,115.24,115.12,276.37093336]
[1644308547924,0.66725896,115.24,115.13,83.33063336]
[1644308548122,0.66725896,115.24,115.13,89.33063336]
[1644308548328,0.66725896,115.24,115.14,1.82148997]
[1644308548526,0.66725896,115.24,115.15,10.34]
[1644308548726,0.66725896,115.24,115.14,10.34]
[1644308549729,0.66725896,115.24,115.15,1.82148997]
[1644308549935,0.66725896,115.24,115.14,10.34]
[1644308550733,0.66725896,115.24,115.06,75.1307]
[1644308550934,0.02890273,115.23,115.08,10.34]
[1644308551333,0.02890273,115.23,115.07,145.4827]
[1644308551334,12.30965822,115.23,115.07,145.4827]
[1644308551533,0.02890273,115.22,115.07,145.4827]
[1644308551933,2.10775549,115.21,115.07,145.4827]
[1644308552132,0.02890273,115.22,115.07,145.4827]
[1644308552536,0.02890273,115.23,115.07,157.64422075]
[1644308553139,0.02890273,115.23,115.07,163.64422075]
[1644308553333,0.02890273,115.23,115.07,163.89422075]
[1644308553935,2.13665822,115.23,115.07,157.64422075]
[1644308554135,0.02890273,115.22,115.07,157.64422075]
[1644308554337,0.02890273,115.23,115.07,157.64422075]
[1644308554536,8.67558491,115.21,115.07,157.64422075]
[1644308554735,8.92558491,115.21,115.07,81.31662075]
[1644308555335,8.92558491,115.21,115.07,25.80112075]
[1644308555636,12.44775549,115.2,115.03,1.81960809]
[1644308555835,12.72665822,115.2,114.98,533.36779847]
[1644308556043,0.31285822,115.18,114.97,12.15960809]
[1644308556237,14.71290273,115.17,114.97,10.34]
[1644308556437,0.02890273,115.16,114.97,10.34]
[1644308556638,14.685,115.15,114.97,10.34]
[1644308556837,0.02890273,115.14,114.97,10.34]
[1644308557036,10.34,115.13,114.95,147.3229]
[1644308557238,3.61,115.11,114.95,147.3229]
[1644308557437,0.02890273,115.1,114.95,147.3229]
[1644308557642,10.36890273,115.1,114.95,147.3229]
[1644308557839,12.72665822,115.1,114.95,147.3229]
[1644308558040,8.67558491,115.09,114.95,147.3229]
[1644308558238,8.92558491,115.09,114.95,147.5729]
[1644308558438,8.95448764,115.09,114.95,147.3229]
[1644308559440,8.95448764,115.09,114.95,73.1325]
[1644308559641,21.40224313,115.09,114.95,23.8571]
[1644308559841,21.3733404,115.09,114.95,23.8571]
[1644308560243,2.33159569,115.08,114.95,23.8571]
[1644308560441,10.34,115.07,114.95,23.8571]
[1644308560640,12.44775549,115.07,114.95,23.8571]
[1644308560841,2.10775549,115.06,114.95,23.8571]
[1644308561243,11.0333404,115.06,114.92,73.149]
[1644308561445,11.06224313,115.06,114.9,119.525]
[1644308561743,2.13665822,115.05,114.9,119.525]
[1644308562142,2.38665822,115.05,114.9,119.525]
[1644308562746,2.10775549,115.04,114.9,119.525]
[1644308563145,2.35775549,115.04,114.9,119.525]
[1644308563344,10.34,115.03,114.9,119.525]
[1644308563770,10.34,115.03,114.9,121.34534002]
[1644308563771,12.44775549,115.03,114.9,121.34534002]
[1644308564068,0.02890273,115.05,114.9,121.34534002]
[1644308564367,8.67558491,115.02,114.9,119.775]
[1644308564567,8.67558491,115.02,114.9,127.59534002]
[1644308564768,8.67558491,115.02,114.9,121.59534002]
[1644308565067,8.67558491,115.02,114.9,127.59534002]
[1644308565271,8.92558491,115.02,114.9,137.68534002]
[1644308565468,8.92558491,115.02,114.9,129.865]
[1644308566179,8.92558491,115.02,114.9,16.34]
[1644308566373,2.10775549,115.01,114.82,69.5794]
[1644308566571,10.34,115.0,114.84,539.95013042]
[1644308566771,21.381,115.0,114.82,23.1605]
[1644308567081,0.30398094,114.98,114.74,71.6714]
[1644308567271,10.36890273,114.97,114.74,71.6714]
[1644308567471,0.30524513,114.94,114.74,71.6714]
[1644308567774,14.72190273,114.93,114.74,71.6714]
[1644308567973,0.02890273,114.92,114.74,71.6714]
[1644308568172,10.34,114.91,114.74,71.6714]
[1644308568572,10.59,114.91,114.74,79.49730103]
[1644308568773,10.59,114.91,114.74,89.83730103]
[1644308568974,8.67558491,114.9,114.74,89.83730103]
[1644308569172,8.67558491,114.9,114.74,102.07307924]
[1644308569372,8.67558491,114.9,114.74,102.32307924]
[1644308569772,8.67558491,114.9,114.74,128.27565256]
[1644308569972,8.67558491,114.9,114.74,123.92165256]
[1644308570377,8.67558491,114.9,114.75,4.354]
[1644308570575,8.67558491,114.9,114.76,10.34]
[1644308570778,8.67558491,114.9,114.76,12.40252824]
[1644308570973,8.67558491,114.9,114.77,1.81252824]
[1644308571379,8.67558491,114.9,114.77,457.31272145]
[1644308571875,8.67558491,114.9,114.78,10.34]
[1644308572077,8.67558491,114.9,114.78,29.3985]
[1644308572277,8.67558491,114.9,114.79,1.81252824]
[1644308572575,8.70448764,114.93,114.79,18.15252824]
[1644308572778,8.67558491,114.93,114.79,94.76352824]
[1644308572978,8.92558491,114.93,114.79,94.76352824]
[1644308573579,8.92558491,114.93,114.79,92.951]
[1644308573777,8.67558491,114.93,114.8,13.0568]
[1644308573979,8.67558491,114.93,114.81,10.34]
[1644308574381,8.67558491,114.93,114.81,16.59]
[1644308574583,5.90549391,114.93,114.81,18.15252824]
[1644308574783,5.90549391,114.93,114.79,101.12462824]
[1644308574982,16.24549391,114.93,114.79,99.3121]
[1644308575183,2.10775549,114.92,114.79,99.3121]
[1644308575383,10.34,114.91,114.79,99.3121]
[1644308575984,5.90549391,114.9,114.79,99.3121]
[1644308576189,5.90549391,114.9,114.79,22.9511]
[1644308576585,5.90549391,114.9,114.8,1.81252824]
[1644308576785,5.90549391,114.9,114.8,2.06252824]
[1644308577186,5.90549391,114.9,114.81,1.81252824]
[1644308577585,5.90549391,114.9,114.81,8.06252824]
[1644308577986,5.90549391,114.9,114.82,1.81252824]
[1644308578188,5.90549391,114.9,114.82,7.81252824]
[1644308578387,5.90549391,114.9,114.82,0.25]
[1644308579586,5.90549391,114.9,114.79,29.2011]
[1644308580186,5.90549391,114.9,114.79,31.01362824]
[1644308580589,5.90549391,114.94,114.8,10.34]
[1644308580795,5.90549391,114.94,114.81,24.3832]
[1644308581189,5.90549391,114.94,114.81,40.7232]
[1644308581391,5.90549391,114.94,114.81,40.9732]
[1644308581894,5.90549391,114.94,114.81,54.0288]
[1644308582491,6.15549391,114.94,114.81,54.0288]
[1644308582691,6.15549391,114.94,114.81,53.7788]
[1644308582890,6.15549391,114.94,114.81,34.7232]
[1644308584191,6.15549391,114.94,114.81,34.9732]
[1644308584593,6.15549391,114.94,114.81,40.9732]
[1644308585395,6.15549391,114.94,114.81,34.9732]
[1644308585694,6.15549391,114.94,114.81,34.7232]
[1644308585896,6.15549391,114.94,114.81,24.3832]
[1644308586496,5.90549391,114.94,114.81,24.3832]
[1644308586695,6.15549391,114.94,114.81,24.3832]
[1644308586895,0.25,114.94,114.81,40.7232]
[1644308587096,0.25,114.94,114.81,34.9732]
[1644308587699,6.15549391,114.95,114.81,48.0288]
[1644308588300,5.90549391,114.95,114.81,54.0288]
[1644308588901,5.90549391,114.95,114.81,48.0288]
[1644308590022,5.90549391,114.96,114.81,54.0288]
[1644308590221,5.90549391,114.96,114.82,22.7796]
[1644308590623,5.90549391,114.96,114.82,23.0296]
[1644308591226,6.15549391,114.96,114.82,23.0296]
[1644308594026,16.49549391,114.96,114.82,22.7796]
[1644308594228,17.64844326,114.96,114.82,22.7796]
[1644308595234,1.15294935,114.95,114.82,22.7796]
[1644308595631,1.40294935,114.95,114.82,22.7796]
[1644308595831,5.90549391,114.94,114.82,22.7796]
[1644308596244,6.15549391,114.94,114.82,22.7796]
[1644308597234,6.15549391,114.94,114.82,23.0296]
[1644308598332,6.15549391,114.94,114.82,22.7796]
[1644308598533,7.30844326,114.94,114.82,22.7796]
[1644308599834,7.30844326,114.94,114.82,23.0296]
[1644308600035,7.05844326,114.94,114.82,23.0296]
[1644308600239,5.90549391,114.94,114.82,23.0296]
[1644308600448,7.05844326,114.94,114.82,23.0296]
[1644308601538,7.30844326,114.94,114.82,23.0296]
[1644308602449,18.57519875,114.94,114.8,1.21636148]
[1644308602640,1.15294935,114.92,114.79,22.9511]
[1644308602841,11.49294935,114.91,114.79,22.9511]
[1644308603040,1.15294935,114.9,114.79,22.9511]
[1644308603440,0.25,114.9,114.79,22.9511]
[1644308604043,1.40294935,114.9,114.79,22.9511]
[1644308605443,17.39844326,114.91,114.79,22.9511]
[1644308606651,5.90549391,114.91,114.79,25.01359005]
[1644308606851,5.90549391,114.91,114.79,33.2911]
[1644308607245,5.90549391,114.91,114.79,35.10359005]
[1644308607448,5.90549391,114.91,114.79,12.15249005]
[1644308607647,5.90549391,114.91,114.78,1.21636148]
[1644308607648,2.10775549,114.9,114.78,1.21636148]
[1644308607847,13.60070484,114.9,114.75,44.75436148]
[1644308608048,11.49294935,114.9,114.75,43.538]
[1644308608250,10.34,114.9,114.75,44.75436148]
[1644308608472,10.34,114.9,114.75,1.21636148]
[1644308608749,10.59,114.9,114.75,1.21636148]
[1644308608949,2.10775549,114.89,114.74,24.72606148]
[1644308609152,10.34,114.89,114.74,24.72606148]
[1644308609351,12.69775549,114.89,114.74,24.72606148]
[1644308610049,12.69775549,114.89,114.74,23.5097]
[1644308610249,13.85070484,114.89,114.74,23.5097]
[1644308610850,10.59,114.89,114.74,24.72606148]
[1644308611148,10.34,114.89,114.75,11.55636148]
[1644308611349,5.90549391,114.88,114.75,11.55636148]
[1644308611752,5.90549391,114.88,114.75,11.80636148]
[1644308611950,10.34,114.93,114.77,3.0]
[1644308612151,6.00509403,115.09,114.82,0.31341748]
[1644308612351,0.02890273,115.03,114.89,129.22]
[1644308612551,0.02890273,115.08,114.91,129.22]
[1644308612756,4.6807558,115.13,114.93,129.22]
[1644308613051,0.24372444,115.07,114.97,13.0374]
[1644308613254,0.21453404,115.07,114.98,10.34]
[1644308615453,0.21453404,115.07,114.98,139.81]
[1644308615654,0.00453404,115.07,114.98,141.62449884]
[1644308615854,0.00453404,115.07,115.02,13.033]
[1644308616060,0.00453404,115.07,115.03,10.34]
[1644308616254,0.00453404,115.07,115.03,10.59]
[1644308616654,0.00453404,115.07,115.04,6.39185]
[1644308616856,0.00453404,115.07,115.05,16.40439994]
[1644308617056,0.00453404,115.07,115.05,22.79569994]
[1644308617259,0.00453404,115.07,115.05,12.45569994]
[1644308617456,0.00453404,115.07,115.05,22.79569994]
[1644308617657,0.00453404,115.07,115.05,30.61018389]
[1644308617857,0.00453404,115.07,115.06,129.22]
[1644308618058,0.0291904,115.22,115.07,135.0]
[1644308618258,0.0291904,115.22,115.1,129.22]
[1644308618457,0.0291904,115.23,115.11,10.34]
[1644308618659,0.66725896,115.24,115.11,10.34]
[1644308618858,0.66725896,115.24,115.12,13.022]
[1644308619057,0.66725896,115.24,115.13,10.34]
[1644308619660,1.9561,115.23,115.13,10.34]
[1644308621164,2.2061,115.23,115.13,10.34]
[1644308621366,1.9561,115.23,115.13,10.34]
[1644308622664,1.9561,115.23,115.13,10.59]
[1644308622866,1.9561,115.23,115.14,6.3863]
[1644308623264,1.9561,115.23,115.15,12.15948658]
[1644308623477,1.9561,115.23,115.16,6.38519]
[1644308623678,1.9561,115.23,115.17,10.34]
[1644308623879,1.9561,115.23,115.18,6.38408]
[1644308624079,1.9561,115.23,115.19,10.34]
[1644308624282,1.9561,115.23,115.19,10.59]
[1644308625080,0.0061,115.23,115.19,10.59]
[1644308625880,5.896e-05,115.24,115.2,106.0]
[1644308626080,0.5934878,115.3,115.21,10.34]
[1644308626283,0.5934878,115.3,115.21,10.59]
[1644308626681,0.5934878,115.3,115.21,10.34]
[1644308627084,2.10775549,115.29,115.21,6.38242]
[1644308627382,10.53925521,115.29,115.21,1e-08]
[1644308627580,14.8574608,115.28,115.15,10.34]
[1644308627781,17.21521629,115.28,115.15,10.34]
[1644308627982,2.10775549,115.27,115.16,6.38519]
[1644308628182,16.96521629,115.27,115.16,6.38519]
[1644308628681,2.10775549,115.27,115.16,16.72519]
[1644308628883,2.10775549,115.26,115.16,16.72519]
[1644308629282,16.96521629,115.26,115.16,6.38519]
[1644308629785,2.10775549,115.25,115.16,6.38519]
[1644308630185,2.35775549,115.25,115.16,6.38519]
[1644308630984,2.10775549,115.24,115.13,10.34]
[1644308631386,2.35775549,115.24,115.13,10.34]
[1644308633286,14.12175549,115.24,115.08,23.4115]
[1644308633487,0.31046152,115.22,115.07,528.03525922]
[1644308633687,0.30844325,115.19,114.99,218.1597]
[1644308633887,10.34,115.18,115.0,6.39407]
[1644308634186,4.73,115.16,115.0,6.39407]
[1644308634386,16.973,115.16,115.0,6.39407]
[1644308634587,0.0291904,115.15,115.0,6.39407]
[1644308634787,21.05578426,115.15,115.0,6.39407]
[1644308634988,10.68659386,115.14,115.0,6.39407]
[1644308635186,21.05578426,115.14,115.0,6.39407]
[1644308635386,19.19802877,115.14,115.0,6.39407]
[1644308635587,10.59,115.14,115.0,6.39407]
[1644308636085,10.6191904,115.14,115.0,6.64407]
[1644308636288,10.59,115.14,115.0,6.64407]
[1644308636488,10.34,115.14,115.0,0.25]
[1644308636887,0.0291904,115.16,114.99,24.1361]
[1644308637087,0.0291904,115.16,114.99,58.2583]
[1644308638689,10.34,115.15,114.99,58.2583]
[1644308638889,0.0291904,115.14,114.99,58.2583]
[1644308639391,6.2691104,115.14,114.99,58.2583]
[1644308639791,6.5191104,115.14,114.99,58.2583]
[1644308639993,6.48992,115.14,114.99,58.2583]
[1644308640191,8.59767549,115.14,114.99,58.2583]
[1644308640392,6.48992,115.14,114.99,58.2583]
[1644308640794,0.25,115.14,114.99,58.2583]
[1644308641195,2.38694589,115.16,114.99,58.2583]
[1644308641404,12.47694589,115.16,114.99,58.2583]
[1644308641595,10.3691904,115.16,114.99,58.0083]
[1644308642695,10.6191904,115.16,114.99,58.2583]
[1644308643796,12.72694589,115.16,114.99,58.2583]
[1644308643998,10.6191904,115.16,114.99,58.2583]
[1644308644599,12.72694589,115.16,114.99,58.2583]
[1644308644799,27.92570724,115.16,114.99,58.2583]
[1644308645603,27.92570724,115.16,114.99,58.0083]
[1644308645902,27.67570724,115.16,114.99,58.0083]
[1644308646803,27.67570724,115.16,114.99,58.2583]
[1644308648202,27.92570724,115.16,114.99,58.2583]
[1644308648403,27.92570724,115.16,115.0,24.6602]
[1644308648703,27.92570724,115.16,115.0,24.9102]
[1644308652709,27.67570724,115.16,115.0,24.9102]
[1644308653109,27.67570724,115.16,114.99,23.8861]
[1644308653308,0.31883255,115.13,114.94,23.4187]
[1644308653512,0.32446702,115.1,114.89,81.4585]
[1644308653709,10.34,115.09,114.91,46.2648]
[1644308653907,5.0,115.06,114.91,46.2648]
[1644308654111,10.34,115.05,114.91,46.2648]
[1644308654508,2.10775549,115.04,114.91,46.2648]
[1644308654709,2.35775549,115.04,114.91,46.2648]
[1644308655111,10.34,115.03,114.91,46.2648]
[1644308655319,12.69775549,115.03,114.91,46.2648]
[1644308657114,12.69775549,115.03,114.9,0.09573]
[1644308657338,2.10775549,115.02,114.9,0.09573]
[1644308657536,25.06175549,115.02,114.9,0.09573]
[1644308657737,5.0,115.01,114.9,0.09573]
[1644308657941,10.34,115.0,114.9,0.09573]
[1644308658338,12.69775549,115.0,114.9,0.09573]
[1644308658739,10.59,115.0,114.9,0.09573]
[1644308659139,10.34,115.0,114.9,0.09573]
[1644308659739,12.44775549,115.04,114.9,0.09573]
[1644308659938,6.23992,115.03,114.9,0.09573]
[1644308660140,8.34767549,115.03,114.9,0.09573]
[1644308660738,8.59767549,115.03,114.9,0.09573]
[1644308661342,2.10775549,115.02,114.88,410.82254682]
[1644308661739,2.35775549,115.02,114.88,411.07254682]
[1644308662140,0.25,115.02,114.88,411.07254682]
[1644308662340,2.35775549,115.02,114.88,411.07254682]
[1644308662743,2.10775549,115.05,114.88,411.07254682]
[1644308662947,2.31640433,115.1,114.89,59.1983]
[1644308663143,6.23992,115.09,114.9,77.0976]
[1644308663343,6.23992,115.09,114.91,35.3153]
[1644308663646,6.23992,115.09,114.92,23.1648]
[1644308663844,6.23992,115.09,114.93,14.687]
[1644308664044,6.23992,115.09,114.93,57.9249]
[1644308664247,6.23992,115.09,114.93,64.1749]
[1644308664449,6.23992,115.09,114.96,474.22103464]
[1644308664648,6.23992,115.09,114.97,10.34]
[1644308664946,6.23992,115.09,114.97,10.59]
[1644308665146,6.48992,115.09,114.97,10.34]
[1644308665554,8.59767549,115.09,114.97,10.34]
[1644308665747,6.48992,115.09,114.97,10.59]
[1644308665947,6.48992,115.09,114.97,10.34]
[1644308666149,23.79643684,115.09,114.96,474.22103464]
[1644308666349,37.86598599,115.09,114.96,474.22103464]
[1644308666548,48.20598599,115.09,114.93,53.5849]
[1644308667148,34.13643684,115.09,114.93,57.9249]
[1644308667448,2.10775549,115.08,114.94,401.65571232]
[1644308667649,8.34767549,115.08,114.94,401.65571232]
[1644308667948,2.10775549,115.07,114.94,401.65571232]
[1644308668349,2.35775549,115.07,114.94,401.65571232]
[1644308668550,2.35775549,115.07,114.94,401.90571232]
[1644308668850,0.25,115.07,114.94,401.65571232]
[1644308669049,2.10775549,115.06,114.94,401.65571232]
[1644308669250,2.35775549,115.06,114.94,401.65571232]
[1644308670251,0.25,115.06,114.94,401.65571232]
[1644308670457,17.55651684,115.08,114.94,401.65571232]
[1644308670653,2.10775549,115.06,114.94,401.65571232]
[1644308670851,0.25,115.06,114.94,401.65571232]
[1644308671754,2.35775549,115.06,114.94,401.65571232]
[1644308672451,0.25,115.06,114.94,401.65571232]
[1644308672752,2.10775549,115.06,114.94,401.65571232]
[1644308672951,15.19876135,115.08,114.94,401.65571232]
[1644308673154,17.30651684,115.08,114.94,401.65571232]
[1644308674152,17.55651684,115.08,114.94,401.65571232]
[1644308675856,2.35775549,115.08,114.94,401.90571232]
[1644308676053,2.10775549,115.08,114.94,401.90571232]
[1644308676252,27.64651684,115.11,114.94,412.24571232]
[1644308676453,27.64651684,115.11,114.95,24.7724]
[1644308676654,27.64651684,115.11,114.95,35.1124]
[1644308676852,27.64651684,115.11,114.95,35.3624]
[1644308677053,25.53876135,115.11,114.95,35.3624]
[1644308677253,27.64651684,115.11,114.95,35.3624]
[1644308677454,25.53876135,115.11,114.95,48.4048]
[1644308678256,27.64651684,115.11,114.95,48.4048]
[1644308678458,12.44775549,115.11,114.95,48.4048]
[1644308678656,46.71606599,115.14,114.95,48.4048]
[1644308678856,52.95598599,115.14,114.95,58.7508]
[1644308679658,52.95598599,115.14,114.95,52.7508]
[1644308679956,52.95598599,115.14,114.95,48.4048]
[1644308680158,55.52239032,115.14,114.95,48.4048]
[1644308680558,47.95598599,115.14,114.95,66.3208]
[1644308680759,33.88643684,115.14,114.95,66.3208]
[1644308680963,23.54643684,115.14,114.95,66.3208]
[1644308681164,6.23992,115.14,114.97,0.30914885]
[1644308681362,6.23992,115.14,115.02,13.0336]
[1644308681566,6.23992,115.14,115.03,10.34]
[1644308681762,6.23992,115.14,115.03,10.59]
[1644308682163,6.23992,115.14,115.03,0.25]
[1644308682564,6.48992,115.14,115.03,0.25]
[1644308682764,6.48992,115.14,115.03,13.2829]
[1644308682963,6.48992,115.14,115.03,13.0329]
[1644308683165,6.48992,115.14,115.03,13.2829]
[1644308683965,0.25,115.14,115.03,13.2829]
[1644308684369,0.02953327,115.17,115.03,13.2829]
[1644308684570,2.38728876,115.18,115.04,23.3713]
[1644308684772,0.02953327,115.17,115.04,23.6213]
[1644308684969,2.10775549,115.17,115.04,10.34]
[1644308685169,17.30651684,115.17,115.04,10.34]
[1644308685369,17.55651684,115.17,115.04,10.34]
[1644308685971,2.10775549,115.17,115.04,10.59]
[1644308686372,2.10775549,115.17,115.04,10.34]
[1644308686772,2.10775549,115.17,115.04,10.59]
[1644308687172,2.10775549,115.17,115.04,33.2097]
[1644308687374,2.35775549,115.17,115.04,33.2097]
[1644308690375,2.35775549,115.17,115.04,33.4597]
[1644308690577,2.10775549,115.17,115.04,33.4597]
[1644308690775,2.10775549,115.17,115.04,39.60155]
[1644308690993,2.10775549,115.17,115.04,33.2097]
[1644308691596,2.10775549,115.17,115.04,33.4597]
[1644308692401,2.10775549,115.17,115.04,39.85155]
[1644308693296,2.35775549,115.17,115.04,39.85155]
[1644308693499,2.10775549,115.17,115.04,39.85155]
[1644308693698,2.10775549,115.17,115.04,52.88355]
[1644308694797,2.35775549,115.17,115.04,54.67053346]
[1644308694996,0.02953327,115.18,115.04,54.67053346]
[1644308695196,0.02953327,115.18,115.05,23.7291]
[1644308695396,0.2,115.19,115.08,13.0274]
[1644308695596,0.2,115.19,115.08,23.3674]
[1644308695796,2.30775549,115.19,115.08,10.34]
[1644308695996,11.63877635,115.19,115.06,24.3828]
[1644308696196,11.88877635,115.19,115.06,24.3828]